fUST/lending_fUST_20250222
["ID","MTS","AMOUNT","RATE_DAILY","PERIOD"]
[354036731,1740191437828,-500.0,0.00013698,2]
[354036732,1740191437838,-507.09779333,0.00013698,2]
[354036733,1740191437850,-505.57062089,0.00013698,2]
[354036734,1740191437861,-505.5959893,0.00013698,2]
[354036735,1740191437873,-500.0,0.00013698,2]
[354036736,1740191437886,-500.0,0.00013698,2]
[354036737,1740191437897,-500.0,0.00013698,2]
[354036738,1740191438041,-500.0,0.00013698,2]
[354036739,1740191438051,-500.0,0.00013698,2]
[354036740,1740191438060,-500.0,0.00013698,2]
[354036741,1740191438069,-286.47844605,0.00013698,2]
[354036742,1740191438078,-505.46792344,0.00013698,2]
[354036743,1740191438087,-507.56931099,0.00013698,2]
[354036744,1740191438097,-500.0,0.00013698,2]
[354036745,1740191438107,-509.04550343,0.00013698,2]
[354036746,1740191438117,-514.409145,0.00013698,2]
[354036747,1740191438127,-500.0,0.00013698,2]
[354036748,1740191438137,-500.0,0.00013698,2]
[354036749,1740191438147,-500.0,0.00013698,2]
[354036750,1740191438156,-500.0,0.00013698,2]
[354036751,1740191438165,-500.0,0.00013698,2]
[354036752,1740191438175,-500.0,0.00013698,2]
[354036753,1740191438185,-500.0,0.00013698,2]
[354036754,1740191438194,-507.08055702,0.00013698,2]
[354036755,1740191438204,-500.0,0.00013698,2]
[354036756,1740191438213,-500.0,0.00013698,2]
[354036757,1740191438222,-500.0,0.00013698,2]
[354036758,1740191438232,-500.0,0.00013698,2]
[354036759,1740191438241,-500.0,0.00013698,2]
[354036760,1740191438251,-500.0,0.00013698,2]
[354036761,1740191438260,-500.0,0.00013698,2]
[354036762,1740191438269,-11.33203255,0.00013698,2]
[354036763,1740191438420,-488.66796745,0.00013698,2]
[354036764,1740191438430,-500.0,0.00013698,2]
[354036765,1740191438439,-304.38221253,0.00013698,2]
[354036766,1740191438451,-195.61778747,0.00013698,2]
[354036767,1740191438460,-500.0,0.00013698,2]
[354036768,1740191438470,-500.0,0.00013698,2]
[354036769,1740191438480,-391.55670189,0.00013698,2]
[354036770,1740191438489,-500.0,0.00013698,2]
[354036771,1740191438498,-500.0,0.00013698,2]
[354036772,1740191438508,-502.31565473,0.00013698,2]
[354036773,1740191438517,-523.39485653,0.00013698,2]
[354036774,1740191438527,-500.0,0.00013698,2]
[354036775,1740191438537,-500.0,0.00013698,2]
[354036776,1740191438547,-508.41163785,0.00013698,2]
[354036777,1740191438556,-500.0,0.00013698,2]
[354036778,1740191438565,-500.0,0.00013698,2]
[354036779,1740191438574,-506.89229684,0.00013698,2]
[354036780,1740191438583,-500.0,0.00013698,2]
[354036781,1740191438593,-500.0,0.00013698,2]
[354036782,1740191438603,-503.78629434,0.00013698,2]
[354036783,1740191438614,-504.72172167,0.00013698,2]
[354036784,1740191438624,-500.0,0.00013698,2]
[354036785,1740191438634,-500.0,0.00013698,2]
[354036786,1740191438643,-503.93801337,0.00013698,2]
[354036787,1740191438653,-507.7009877,0.00013698,2]
[354036788,1740191438662,-501.84367678,0.00013698,2]
[354036789,1740191438671,-509.29145091,0.00013698,2]
[354036790,1740191438681,-506.36502488,0.00013698,2]
[354036791,1740191438691,-512.16984833,0.00013698,2]
[354036792,1740191438700,-501.24109588,0.00013698,2]
[354036793,1740191438709,-500.0,0.00013698,2]
[354036794,1740191438718,-500.0,0.00013698,2]
[354036795,1740191438727,-504.94930752,0.00013698,2]
[354036796,1740191438736,-500.0,0.00013698,2]
[354036797,1740191438746,-500.0,0.00013698,2]
[354036798,1740191438754,-503.10173925,0.00013698,2]
[354036799,1740191438763,-503.48296828,0.00013698,2]
[354036800,1740191438773,-500.0,0.00013698,2]
[354036801,1740191438782,-500.0,0.00013698,2]
[354036802,1740191438791,-568.04586127,0.00013698,2]
[354036803,1740191438801,-500.0,0.00013698,2]
[354036804,1740191438810,-500.0,0.00013698,2]
[354036805,1740191438819,-500.0,0.00013698,2]
[354036806,1740191438828,-500.0,0.00013698,2]
[354036807,1740191438838,-500.0,0.00013698,2]
[354036808,1740191438847,-502.73381594,0.00013698,2]
[354036809,1740191438857,-506.55348085,0.00013698,2]
[354036810,1740191438867,-500.0,0.00013698,2]
[354036811,1740191438877,-500.0,0.00013698,2]
[354036812,1740191438888,-500.0,0.00013698,2]
[354036813,1740191438897,-1148.1,0.00013698,2]
[354036814,1740191438906,-500.0,0.00013698,2]
[354036815,1740191438915,-500.0,0.00013698,2]
[354036816,1740191438925,-500.0,0.00013698,2]
[354036817,1740191438935,-500.0,0.00013698,2]
[354036818,1740191438944,-610.6334112,0.00013698,2]
[354036819,1740191438954,-500.0,0.00013698,2]
[354036820,1740191438963,-501.34308873,0.00013698,2]
[354036821,1740191438973,-509.96990728,0.00013698,2]
[354036822,1740191438982,-500.0,0.00013698,2]
[354036823,1740191438991,-500.0,0.00013698,2]
[354036824,1740191439000,-500.0,0.00013698,2]
[354036825,1740191439010,-3620.46,0.00013698,2]
[354036826,1740191439019,-500.0,0.00013698,2]
[354036827,1740191439029,-500.0,0.00013698,2]
[354036828,1740191439039,-500.0,0.00013698,2]
[354036829,1740191439048,-500.0,0.00013698,2]
[354036830,1740191439058,-500.0,0.00013698,2]
[354036831,1740191439067,-500.0,0.00013698,2]
[354036832,1740191439077,-500.0,0.00013698,2]
[354036833,1740191439086,-500.0,0.00013698,2]
[354036834,1740191439096,-500.0,0.00013698,2]
[354036835,1740191439105,-500.0,0.00013698,2]
[354036836,1740191439114,-500.0,0.00013698,2]
[354036837,1740191439124,-510.36379561,0.00013698,2]
[354036838,1740191439134,-500.0,0.00013698,2]
[354036839,1740191439144,-500.0,0.00013698,2]
[354036840,1740191439153,-6396.01,0.00013698,2]
[354036841,1740191439163,-500.0,0.00013698,2]
[354036842,1740191439172,-514.92706436,0.00013698,2]
[354036843,1740191439182,-500.0,0.00013698,2]
[354036844,1740191439191,-500.0,0.00013698,2]
[354036845,1740191439200,-500.0,0.00013698,2]
[354036846,1740191439209,-500.0,0.00013698,2]
[354036847,1740191439219,-596.87284392,0.00013698,2]
[354036848,1740191439228,-500.0,0.00013698,2]
[354036849,1740191439238,-501.75977665,0.00013698,2]
[354036850,1740191439247,-500.0,0.00013698,2]
[354036851,1740191439256,-500.0,0.00013698,2]
[354036852,1740191439266,-500.0,0.00013698,2]
[354036853,1740191439275,-500.0,0.00013698,2]
[354036854,1740191439285,-500.0,0.00013698,2]
[354036855,1740191439294,-500.0,0.00013698,2]
[354036856,1740191439303,-500.0,0.00013698,2]
[354036857,1740191439312,-500.0,0.00013698,2]
[354036858,1740191439322,-1404.24,0.00013698,2]
[354036859,1740191439331,-617.99,0.00013698,2]
[354036860,1740191439340,-500.0,0.00013698,2]
[354036862,1740191439350,-504.09399235,0.00013698,2]
[354036863,1740191439359,-509.260494,0.00013698,2]
[354036864,1740191439368,-931.62,0.00013698,2]
[354036865,1740191439377,-501.02000868,0.00013698,2]
[354036866,1740191439386,-508.75587741,0.00013698,2]
[354036867,1740191439395,-500.0,0.00013698,2]
[354036868,1740191439404,-500.0,0.00013698,2]
[354036869,1740191439413,-500.0,0.00013698,2]
[354036870,1740191439422,-593.38,0.00013698,2]
[354036871,1740191439431,-598.59,0.00013698,2]
[354036872,1740191439441,-572.9,0.00013698,2]
[354036873,1740191439449,-503.275227,0.00013698,2]
[354036874,1740191439458,-500.0,0.00013698,2]
[354036875,1740191439467,-502.33134883,0.00013698,2]
[354036877,1740191439476,-500.0,0.00013698,2]
[354036879,1740191439485,-595.41,0.00013698,2]
[354036881,1740191439494,-501.04333188,0.00013698,2]
[354036883,1740191439503,-2782.11,0.00013698,2]
[354036884,1740191439512,-498.90648509,0.00013698,2]
[354036885,1740191439521,-500.0,0.00013698,2]
[354036886,1740191439530,-500.0,0.00013698,2]
[354036887,1740191439539,-500.0,0.00013698,2]
[354036888,1740191439548,-500.0,0.00013698,2]
[354036889,1740191439557,-504.12497037,0.00013698,2]
[354036890,1740191439566,-500.0,0.00013698,2]
[354036891,1740191439575,-500.0,0.00013698,2]
[354036892,1740191439584,-500.0,0.00013698,2]
[354036893,1740191439594,-500.0,0.00013698,2]
[354036894,1740191439604,-500.0,0.00013698,2]
[354036895,1740191439614,-243.08623118,0.00013698,2]
[354036896,1740191439629,-258.01175342,0.00013698,2]
[354036897,1740191439638,-500.0,0.00013698,2]
[354036898,1740191439647,-500.0,0.00013698,2]
[354036899,1740191439659,-500.0,0.00013698,2]
[354036901,1740191439668,-505.78893462,0.00013698,2]
[354036903,1740191439678,-500.0,0.00013698,2]
[354036905,1740191439687,-500.0,0.00013698,2]
[354036906,1740191439697,-500.0,0.00013698,2]
[354036907,1740191439706,-500.0,0.00013698,2]
[354036908,1740191439715,-500.0,0.00013698,2]
[354036909,1740191439725,-500.0,0.00013698,2]
[354036910,1740191439733,-500.0,0.00013698,2]
[354036911,1740191439743,-500.0,0.00013698,2]
[354036912,1740191439753,-167.518919,0.00013699,2]
[354036913,1740191439764,-1356.6713653,0.00013699,2]
[354036914,1740191439773,-500.0,0.00013779,2]
[354036915,1740191439782,-500.0,0.00013779,2]
[354036916,1740191439791,-500.0,0.00013779,2]
[354036917,1740191439801,-500.0,0.00013779,2]
[354036918,1740191439810,-500.0,0.00013779,2]
[354036919,1740191439819,-500.0,0.00013779,2]
[354036920,1740191439828,-500.0,0.00013779,2]
[354036921,1740191439838,-502.37,0.0001378,2]
[354036922,1740191439847,-500.0,0.0001378,2]
[354036923,1740191439857,-506.23968342,0.0001378,2]
[354036924,1740191439866,-508.75907403,0.0001378,2]
[354036925,1740191439877,-504.09386701,0.0001378,2]
[354036926,1740191439890,-508.64494004,0.0001378,2]
[354036927,1740191439899,-507.10919914,0.0001378,2]
[354036928,1740191439910,-500.0,0.0001378,2]
[354036929,1740191439920,-500.0,0.0001378,2]
[354036930,1740191439930,-500.0,0.0001378,2]
[354036932,1740191439940,-500.0,0.0001378,2]
[354036934,1740191439950,-500.0,0.0001378,2]
[354036936,1740191439959,-500.0,0.0001378,2]
[354036938,1740191439970,-500.0,0.0001378,2]
[354036939,1740191439979,-500.0,0.0001378,2]
[354036941,1740191439988,-500.0,0.0001378,2]
[354036942,1740191439997,-500.0,0.0001378,2]
[354036944,1740191440007,-500.0,0.0001378,2]
[354036945,1740191440016,-500.0,0.0001378,2]
[354036946,1740191440025,-505.7751547,0.0001378,2]
[354036947,1740191440034,-521.31175917,0.0001378,2]
[354036948,1740191440045,-500.0,0.0001378,2]
[354036949,1740191440054,-500.0,0.0001378,2]
[354036950,1740191440063,-500.0,0.0001378,2]
[354036951,1740191440072,-500.0,0.0001378,2]
[354036952,1740191440081,-500.0,0.0001378,2]
[354036953,1740191440093,-500.0,0.0001378,2]
[354036954,1740191440102,-500.0,0.0001378,2]
[354036955,1740191440111,-500.0,0.0001378,2]
[354036956,1740191440121,-500.0,0.0001378,2]
[354036957,1740191440130,-208.8030192,0.0001378,2]
[354036958,1740191440139,-500.0,0.0001378,2]
[354036959,1740191440148,-500.0,0.0001378,2]
[354036961,1740191440157,-500.0,0.0001378,2]
[354036962,1740191440167,-500.0,0.0001378,2]
[354036963,1740191440176,-500.0,0.0001378,2]
[354036964,1740191440185,-500.0,0.0001378,2]
[354036966,1740191440194,-500.0,0.0001378,2]
[354036968,1740191440203,-500.0,0.0001378,2]
[354036970,1740191440212,-500.0,0.0001378,2]
[354036971,1740191440221,-500.0,0.0001378,2]
[354036972,1740191440230,-512.26365716,0.0001378,2]
[354036973,1740191440239,-500.0,0.0001378,2]
[354036974,1740191440249,-500.0,0.0001378,2]
[354036975,1740191440258,-509.14606965,0.0001378,2]
[354036976,1740191440267,-500.0,0.0001378,2]
[354036977,1740191440276,-504.4956583,0.0001378,2]
[354036978,1740191440285,-500.0,0.0001378,2]
[354036979,1740191440294,-506.67381744,0.0001378,2]
[354036980,1740191440303,-500.0,0.0001378,2]
[354036981,1740191440312,-1148.1,0.0001378,2]
[354036982,1740191440322,-500.0,0.0001378,2]
[354036983,1740191440331,-500.0,0.0001378,2]
[354036984,1740191440340,-500.0,0.0001378,2]
[354036985,1740191440349,-500.0,0.0001378,2]
[354036986,1740191440359,-3620.46,0.0001378,2]
[354036987,1740191440368,-500.0,0.0001378,2]
[354036988,1740191440377,-500.0,0.0001378,2]
[354036989,1740191440387,-500.0,0.0001378,2]
[354036990,1740191440396,-500.0,0.0001378,2]
[354036991,1740191440405,-512.02961295,0.0001378,2]
[354036992,1740191440414,-500.0,0.0001378,2]
[354036993,1740191440423,-500.0,0.0001378,2]
[354036994,1740191440432,-6396.01,0.0001378,2]
[354036995,1740191440441,-500.0,0.0001378,2]
[354036996,1740191440450,-500.0,0.0001378,2]
[354036997,1740191440549,-500.0,0.0001378,2]
[354036998,1740191440558,-500.0,0.0001378,2]
[354036999,1740191440567,-500.0,0.0001378,2]
[354037000,1740191440576,-500.0,0.0001378,2]
[354037001,1740191440586,-500.0,0.0001378,2]
[354037002,1740191440595,-503.38492946,0.0001378,2]
[354037003,1740191440604,-503.08334714,0.0001378,2]
[354037004,1740191440614,-500.0,0.0001378,2]
[354037005,1740191440623,-500.0,0.0001378,2]
[354037006,1740191440632,-500.0,0.0001378,2]
[354037007,1740191440642,-500.0,0.0001378,2]
[354037008,1740191440654,-1404.24,0.0001378,2]
[354037009,1740191440664,-617.99,0.0001378,2]
[354037010,1740191440674,-500.0,0.0001378,2]
[354037011,1740191440683,-931.62,0.0001378,2]
[354037012,1740191440693,-500.0,0.0001378,2]
[354037013,1740191440702,-500.0,0.0001378,2]
[354037014,1740191440711,-546.28593014,0.0001378,2]
[354037015,1740191440720,-593.38,0.0001378,2]
[354037016,1740191440729,-598.59,0.0001378,2]
[354037017,1740191440738,-572.9,0.0001378,2]
[354037018,1740191440747,-230.86003984,0.0001378,2]
[354037019,1740191440756,-595.41,0.0001378,2]
[354037020,1740191440766,-2782.11,0.0001378,2]
[354037021,1740191440775,-500.0,0.0001378,2]
[354037022,1740191440784,-500.0,0.0001378,2]
[354037023,1740191440793,-500.0,0.0001378,2]
[354037024,1740191440803,-500.0,0.0001378,2]
[354037025,1740191440812,-500.0,0.0001378,2]
[354037026,1740191440821,-500.0,0.0001378,2]
[354037027,1740191440831,-500.0,0.0001378,2]
[354037028,1740191440839,-505.57187487,0.0001378,2]
[354037029,1740191440849,-500.0,0.0001378,2]
[354037030,1740191440858,-500.0,0.0001378,2]
[354037031,1740191440867,-500.0,0.0001378,2]
[354037032,1740191440881,-500.0,0.0001378,2]
[354037033,1740191440891,-500.0,0.0001378,2]
[354037034,1740191440900,-505.76753374,0.0001378,2]
[354037035,1740191440909,-500.0,0.0001378,2]
[354037036,1740191440918,-500.0,0.0001378,2]
[354037037,1740191440928,-506.63121742,0.0001378,2]
[354037038,1740191440937,-623.57283787,0.0001378,2]
[354037039,1740191440946,-500.0,0.0001378,2]
[354037040,1740191440955,-500.0,0.0001378,2]
[354037041,1740191440964,-152.0,0.00013795,2]
[354037042,1740191440973,-500.0,0.00013838,2]
[354037043,1740191440982,-500.0,0.00013838,2]
[354037044,1740191440991,-500.0,0.00013838,2]
[354037045,1740191441000,-600.0,0.00013838,2]
[354037046,1740191441009,-500.0,0.00013838,2]
[354037047,1740191441018,-500.0,0.00013838,2]
[354037048,1740191441028,-500.0,0.00013838,2]
[354037049,1740191441037,-500.0,0.00013838,2]
[354037050,1740191441046,-500.0,0.00013838,2]
[354037051,1740191441055,-439.90305492,0.00013838,2]
[354037052,1740191441065,-500.0,0.00013838,2]
[354037053,1740191441074,-500.0,0.00013838,2]
[354037054,1740191441083,-500.0,0.00013838,2]
[354037055,1740191441092,-201.76985648,0.00013838,2]
[354037056,1740191441101,-500.0,0.00013838,2]
[354037057,1740191441110,-500.0,0.00013838,2]
[354037058,1740191441120,-500.0,0.00013838,2]
[354037059,1740191441129,-500.0,0.00013838,2]
[354037060,1740191441138,-500.0,0.00013838,2]
[354037061,1740191441147,-500.0,0.00013838,2]
[354037062,1740191441156,-29622.5004415,0.00013839,5]
[354037063,1740191441165,-26964.44192894,0.00013839,5]
[354037064,1740191441243,-47267.35503118,0.00013839,5]
[354037065,1740191441255,-731.96613642,0.00013839,5]
[354037066,1740191441266,-720.41,0.00013839,5]
[354037067,1740191441276,-632.77802642,0.00013839,5]
[354037153,1740191445848,-501.13745167,0.00013698,2]
[354037154,1740191445858,-500.0,0.00013698,2]
[354037155,1740191445868,-500.0,0.00013698,2]
[354037156,1740191445878,-20402.10254833,0.00013839,5]
[354037162,1740192437744,230.13839,9.041e-05,2]
[354037163,1740192447121,-300.0,0.0001281,2]
[354037164,1740192447144,-9694.31557276,0.00012811,2]
[354037165,1740192450131,-338.58589222,0.00012811,2]
[354037171,1740192601741,1299.17729568,0.00017774,32]
[354037182,1740192632049,-300.0,0.0001281,2]
[354037183,1740192632058,-633.12684086,0.00012811,2]
[354037184,1740192632104,-300.0,0.00012811,2]
[354037185,1740192632159,-1811.47697342,0.00012811,2]
[354037186,1740192632170,-3801.8992304,0.00012811,2]
[354037187,1740192632220,-4564.87494519,0.00012811,2]
[354037190,1740192632243,-143.09657488,0.00012811,2]
[354037218,1740192637892,-3612.62397027,0.00012811,2]
[354037219,1740192637902,-465.71846269,0.00013556,2]
[354037220,1740192637911,-249.48865943,0.00013566,2]
[354037221,1740192637921,-23626.48632062,0.000136,2]
[354037222,1740192637932,-11388.33812202,0.000136,2]
[354037223,1740192637941,-670.0863445,0.00013666,2]
[354037224,1740192637950,-235.75395888,0.00013698,2]
[354037225,1740192637961,-264.24604112,0.00013698,2]
[354037226,1740192637970,-134.54366907,0.00013698,2]
[354037227,1740192637981,-102.21416374,0.00013698,2]
[354037228,1740192637990,-500.0,0.00013698,2]
[354037229,1740192638000,-332.78583626,0.00013698,2]
[354037230,1740192638011,-167.21416374,0.00013698,2]
[354037231,1740192638020,-500.0,0.00013698,2]
[354037232,1740192638029,-500.0,0.00013698,2]
[354037233,1740192638134,-500.0,0.00013698,2]
[354037234,1740192638144,-500.0,0.00013698,2]
[354037235,1740192638153,-500.0,0.00013698,2]
[354037236,1740192638162,-436.36199518,0.00013698,2]
[354037237,1740192638172,-506.00789624,0.00013698,2]
[354037238,1740192638182,-500.0,0.00013698,2]
[354037239,1740192638192,-473.76571165,0.00013698,2]
[354037240,1740192638201,-167.67646269,0.00013698,2]
[354037241,1740192638211,-500.0,0.00013698,2]
[354037242,1740192638220,-500.0,0.00013698,2]
[354037243,1740192638229,-321.8530994,0.00013698,2]
[354037244,1740192638238,-505.03334629,0.00013698,2]
[354037245,1740192638247,-504.08221958,0.00013698,2]
[354037246,1740192638256,-505.38297307,0.00013698,2]
[354037247,1740192638265,-502.80281765,0.00013698,2]
[354037248,1740192638274,-500.0,0.00013698,2]
[354037249,1740192638283,-501.68615155,0.00013698,2]
[354037250,1740192638293,-31.58711417,0.00013698,2]
[354037251,1740192638305,-471.46909819,0.00013698,2]
[354037252,1740192638317,-500.0,0.00013698,2]
[354037253,1740192638327,-500.0,0.00013698,2]
[354037254,1740192638336,-171.32983659,0.00013698,2]
[354037255,1740192638348,-328.67016341,0.00013698,2]
[354037256,1740192638358,-343.98942279,0.00013698,2]
[354037257,1740192638367,-502.04713112,0.00013698,2]
[354037258,1740192638376,-175.29328269,0.00013698,2]
[354037259,1740192638387,-324.70671731,0.00013698,2]
[354037260,1740192638397,-502.60469467,0.00013698,2]
[354037261,1740192638406,-500.0,0.00013698,2]
[354037262,1740192638415,-502.27167066,0.00013698,2]
[354037263,1740192638425,-505.42808029,0.00013698,2]
[354037264,1740192638434,-500.0,0.00013698,2]
[354037265,1740192638444,-502.35941768,0.00013698,2]
[354037266,1740192638453,-500.0,0.00013698,2]
[354037267,1740192638462,-500.0,0.00013698,2]
[354037268,1740192638472,-502.44694421,0.00013698,2]
[354037269,1740192638482,-500.0,0.00013698,2]
[354037270,1740192638491,-504.06244333,0.00013698,2]
[354037271,1740192638500,-506.85674753,0.00013698,2]
[354037272,1740192638509,-500.0,0.00013698,2]
[354037273,1740192638519,-500.0,0.00013698,2]
[354037274,1740192638528,-500.0,0.00013698,2]
[354037275,1740192638537,-500.0,0.00013698,2]
[354037276,1740192638546,-500.0,0.00013698,2]
[354037277,1740192638555,-500.0,0.00013698,2]
[354037278,1740192638565,-500.0,0.00013698,2]
[354037279,1740192638574,-500.0,0.00013698,2]
[354037280,1740192638584,-500.0,0.00013698,2]
[354037281,1740192638593,-500.0,0.00013698,2]
[354037282,1740192638603,-500.0,0.00013698,2]
[354037283,1740192638612,-500.0,0.00013698,2]
[354037284,1740192638621,-500.0,0.00013698,2]
[354037285,1740192638630,-500.0,0.00013698,2]
[354037286,1740192638640,-500.0,0.00013698,2]
[354037287,1740192638649,-500.0,0.00013698,2]
[354037288,1740192638658,-500.0,0.00013698,2]
[354037289,1740192638667,-500.0,0.00013698,2]
[354037290,1740192638676,-500.0,0.00013698,2]
[354037291,1740192638685,-500.98062532,0.00013698,2]
[354037292,1740192638694,-500.0,0.00013698,2]
[354037293,1740192638703,-157.84752274,0.00013698,2]
[354037294,1740192638712,-500.0,0.00013698,2]
[354037295,1740192638721,-512.27054454,0.00013698,2]
[354037296,1740192638730,-500.0,0.00013698,2]
[354037297,1740192638742,-500.0,0.00013698,2]
[354037298,1740192638752,-500.0,0.00013698,2]
[354037299,1740192638761,-500.0,0.00013698,2]
[354037300,1740192638770,-500.0,0.00013698,2]
[354037301,1740192638779,-500.0,0.00013698,2]
[354037302,1740192638789,-500.0,0.00013698,2]
[354037303,1740192638799,-500.0,0.00013698,2]
[354037304,1740192638808,-504.88630154,0.00013698,2]
[354037305,1740192638818,-500.0,0.00013698,2]
[354037306,1740192638827,-652.68,0.00013698,2]
[354037307,1740192638836,-652.68,0.00013698,2]
[354037308,1740192638845,-652.68,0.00013698,2]
[354037309,1740192638854,-652.68,0.00013698,2]
[354037310,1740192638864,-652.68,0.00013698,2]
[354037311,1740192638873,-652.68,0.00013698,2]
[354037312,1740192638882,-500.0,0.00013698,2]
[354037313,1740192638891,-500.0,0.00013698,2]
[354037314,1740192638901,-652.2,0.00013698,2]
[354037315,1740192638910,-500.0,0.00013698,2]
[354037316,1740192638919,-1671.99,0.00013698,2]
[354037317,1740192638928,-500.0,0.00013698,2]
[354037318,1740192638937,-500.0,0.00013698,2]
[354037319,1740192638948,-505.83798457,0.00013698,2]
[354037320,1740192638958,-508.46480841,0.00013698,2]
[354037321,1740192638967,-502.90002585,0.00013698,2]
[354037322,1740192638976,-500.0,0.00013698,2]
[354037323,1740192638985,-401.23036432,0.00013698,2]
[354037324,1740192638994,-508.22781214,0.00013698,2]
[354037325,1740192639003,-500.0,0.00013698,2]
[354037326,1740192639013,-500.0,0.00013698,2]
[354037327,1740192639021,-501.59471906,0.00013698,2]
[354037328,1740192639031,-500.0,0.00013698,2]
[354037329,1740192639040,-8887.26,0.00013698,2]
[354037330,1740192639049,-500.0,0.00013698,2]
[354037331,1740192639058,-500.0,0.00013698,2]
[354037332,1740192639067,-500.0,0.00013698,2]
[354037333,1740192639076,-500.0,0.00013698,2]
[354037334,1740192639086,-381.77816719,0.00013698,2]
[354037335,1740192639097,-500.0,0.00013698,2]
[354037336,1740192639111,-1859.74,0.00013698,2]
[354037337,1740192639124,-500.0,0.00013698,2]
[354037338,1740192639137,-507.39517375,0.00013698,2]
[354037339,1740192639150,-503.71238754,0.00013698,2]
[354037340,1740192639160,-222.54197949,0.00013698,2]
[354037341,1740192639172,-500.0,0.00013698,2]
[354037342,1740192639184,-500.0,0.00013698,2]
[354037343,1740192639196,-501.9227434,0.00013698,2]
[354037344,1740192639207,-504.56518674,0.00013698,2]
[354037345,1740192639219,-500.0,0.00013698,2]
[354037346,1740192639231,-500.0,0.00013698,2]
[354037347,1740192639244,-500.0,0.00013698,2]
[354037348,1740192639255,-779.51,0.00013698,2]
[354037349,1740192639267,-500.0,0.00013698,2]
[354037350,1740192639277,-849.07,0.00013698,2]
[354037351,1740192639287,-835.56,0.00013698,2]
[354037352,1740192639297,-500.0,0.00013698,2]
[354037353,1740192639308,-500.0,0.00013698,2]
[354037354,1740192639326,-1351.64,0.00013698,2]
[354037355,1740192639337,-500.0,0.00013698,2]
[354037356,1740192639350,-500.0,0.00013698,2]
[354037357,1740192639363,-500.0,0.00013698,2]
[354037358,1740192639375,-500.0,0.00013698,2]
[354037359,1740192639387,-500.0,0.00013698,2]
[354037360,1740192639400,-500.0,0.00013698,2]
[354037361,1740192639412,-500.0,0.00013698,2]
[354037362,1740192639423,-500.0,0.00013698,2]
[354037363,1740192639435,-500.0,0.00013698,2]
[354037364,1740192639447,-500.0,0.00013698,2]
[354037365,1740192639460,-956.95,0.00013698,2]
[354037366,1740192639471,-861.91,0.00013698,2]
[354037367,1740192639483,-3964.63,0.00013698,2]
[354037368,1740192639494,-500.0,0.00013698,2]
[354037369,1740192639506,-500.0,0.00013698,2]
[354037370,1740192639518,-500.0,0.00013698,2]
[354037371,1740192639529,-500.0,0.00013698,2]
[354037372,1740192639541,-500.0,0.00013698,2]
[354037373,1740192639554,-503.02718106,0.00013698,2]
[354037374,1740192639567,-500.0,0.00013698,2]
[354037376,1740192639579,-500.0,0.00013698,2]
[354037377,1740192639590,-500.0,0.00013698,2]
[354037378,1740192639601,-500.0,0.00013698,2]
[354037379,1740192639612,-500.0,0.00013698,2]
[354037380,1740192639623,-500.0,0.00013698,2]
[354037381,1740192639634,-500.0,0.00013698,2]
[354037382,1740192639646,-500.0,0.00013698,2]
[354037383,1740192639659,-500.0,0.00013698,2]